fUSD/lending_fUSD_20240121
["ID","MTS","AMOUNT","RATE_DAILY","PERIOD"]
[312425420,1705870252926,-500.0,0.00041095,31]
[312425421,1705870252935,-500.0,0.00041095,31]
[312425422,1705870252945,-731.38,0.00041095,31]
[312425423,1705870252956,-1920.83,0.00041095,31]
[312425424,1705870252970,-500.0,0.00041095,15]
[312425425,1705870252979,-500.0,0.00041095,31]
[312425426,1705870252989,-500.0,0.00041095,31]
[312425427,1705870252999,-2527.86,0.00041095,31]
[312425428,1705870253008,-500.0,0.00041095,31]
[312425429,1705870253018,-642.75,0.00041095,31]
[312425430,1705870253028,-4484.86,0.00041095,31]
[312425431,1705870253038,-2161.01,0.00041095,31]
[312425432,1705870253049,-500.0,0.00041095,31]
[312425433,1705870253058,-4070.17,0.00041095,31]
[312425434,1705870253068,-759.57,0.00041095,31]
[312425435,1705870253077,-500.0,0.00041095,31]
[312425436,1705870253087,-500.0,0.00041095,31]
[312425437,1705870253097,-500.0,0.00041095,2]
[312425438,1705870253106,-500.0,0.00041095,31]
[312425439,1705870253117,-500.0,0.00041095,31]
[312425440,1705870253127,-675.98,0.00041095,31]
[312425441,1705870253137,-500.0,0.00041095,31]
[312425442,1705870253146,-500.0,0.00041095,31]
[312425443,1705870253156,-500.0,0.00041095,31]
[312425444,1705870253165,-1832.66,0.00041095,31]
[312425445,1705870253175,-500.0,0.00041095,31]
[312425446,1705870253185,-500.0,0.00041095,31]
[312425447,1705870253195,-500.0,0.00041095,31]
[312425448,1705870253205,-1806.41,0.00041095,31]
[312425449,1705870253214,-1936.35,0.00041095,31]
[312425450,1705870253224,-787.04,0.00041095,31]
[312425451,1705870253234,-674.44,0.00041095,31]
[312425452,1705870253244,-500.0,0.00041095,31]
[312425453,1705870253254,-500.0,0.00041095,31]
[312425454,1705870253264,-8992.54,0.00041095,31]
[312425455,1705870253274,-500.0,0.00041095,31]
[312425456,1705870253283,-500.0,0.00041095,31]
[312425457,1705870253293,-500.0,0.00041095,31]
[312425458,1705870253302,-750.4,0.00041095,31]
[312425459,1705870253312,-500.0,0.00041095,31]
[312425460,1705870253321,-653.05,0.00041095,31]
[312425461,1705870253331,-669.01,0.00041095,31]
[312425462,1705870253340,-500.0,0.00041095,31]
[312425463,1705870253349,-500.0,0.00041095,31]
[312425464,1705870253359,-500.0,0.00041095,31]
[312425465,1705870253369,-500.0,0.00041095,31]
[312425466,1705870253378,-500.0,0.00041095,31]
[312425467,1705870253387,-500.0,0.00041095,31]
[312425468,1705870253396,-500.0,0.00041095,31]
[312425469,1705870253406,-584.15,0.00041095,31]
[312425470,1705870253415,-851.66,0.00041095,31]
[312425471,1705870253424,-500.0,0.00041095,31]
[312425472,1705870253434,-500.0,0.00041095,31]
[312425473,1705870253443,-504.5334652,0.00041095,31]
[312425474,1705870253452,-2219.45,0.00041095,31]
[312425475,1705870253462,-500.0,0.00041095,31]
[312425476,1705870253471,-500.0,0.00041095,7]
[312425477,1705870253481,-1019.93,0.00041095,31]
[312425478,1705870253491,-2612.98,0.00041095,31]
[312425479,1705870253500,-500.0,0.00041095,31]
[312425480,1705870253509,-3882.97,0.00041095,31]
[312425481,1705870253519,-500.0,0.00041095,31]
[312425482,1705870253529,-500.0,0.00041095,31]
[312425483,1705870253538,-500.0,0.00041095,31]
[312425484,1705870253548,-500.0,0.00041095,31]
[312425485,1705870253558,-500.0,0.00041095,31]
[312425486,1705870253568,-500.0,0.00041095,31]
[312425487,1705870253577,-500.0,0.00041095,31]
[312425488,1705870253587,-2872.23,0.00041095,31]
[312425489,1705870253894,-4505.91,0.00041095,31]
[312425490,1705870253908,-658.6,0.00041095,31]
[312425491,1705870253918,-309.33813589,0.00041095,31]
[312425492,1705870253927,-500.0,0.00041095,31]
[312425493,1705870253936,-500.0,0.00041095,31]
[312425494,1705870253946,-2205.33,0.00041095,31]
[312425495,1705870253956,-500.0,0.00041095,31]
[312425496,1705870253965,-500.0,0.00041095,31]
[312425497,1705870253978,-988.7,0.00041095,31]
[312425498,1705870253988,-500.0,0.00041095,31]
[312425499,1705870253997,-500.0,0.00041095,31]
[312425500,1705870254007,-500.0,0.00041095,31]
[312425501,1705870254018,-1267.21,0.00041095,31]
[312425502,1705870254028,-500.0,0.00041095,31]
[312425503,1705870254038,-500.0,0.00041095,31]
[312425504,1705870254048,-500.0,0.00041095,31]
[312425505,1705870254058,-500.0,0.00041095,31]
[312425506,1705870254067,-2972.51,0.00041095,31]
[312425507,1705870254078,-500.0,0.00041095,31]
[312425508,1705870254087,-500.0,0.00041095,31]
[312425509,1705870254097,-853.77,0.00041095,31]
[312425510,1705870254106,-1107.12,0.00041095,31]
[312425511,1705870254116,-1314.93,0.00041095,31]
[312425512,1705870254126,-500.0,0.00041095,31]
[312425513,1705870254135,-500.0,0.00041095,31]
[312425514,1705870254145,-500.0,0.00041095,31]
[312425515,1705870254154,-1849.64,0.00041095,31]
[312425516,1705870254164,-500.0,0.00041095,31]
[312425517,1705870254174,-500.0,0.00041095,31]
[312425518,1705870254183,-1195.98,0.00041095,31]
[312425519,1705870254193,-500.0,0.00041095,31]
[312425520,1705870254203,-17008.49,0.00041095,31]
[312425521,1705870254213,-500.0,0.00041095,31]
[312425522,1705870254222,-500.0,0.00041095,31]
[312425523,1705870254232,-500.0,0.00041095,31]
[312425524,1705870254242,-571.13657399,0.00041095,31]
[312425525,1705870254251,-500.0,0.00041095,31]
[312425526,1705870254261,-22836.0,0.00041095,31]
[312425527,1705870254270,-1627.05,0.00041095,31]
[312425528,1705870254280,-2658.3,0.00041095,31]
[312425529,1705870254289,-500.0,0.00041095,31]
[312425530,1705870254298,-200.15964,0.00041095,31]
[312425531,1705870254308,-500.0,0.00041095,31]
[312425532,1705870254318,-500.0,0.00041095,31]
[312425533,1705870254327,-5254.2,0.00041095,31]
[312425534,1705870254337,-500.0,0.00041095,31]
[312425535,1705870254346,-1000.0,0.00041095,31]
[312425536,1705870254356,-1608.45,0.00041095,31]
[312425537,1705870254365,-500.0,0.00041095,31]
[312425538,1705870254375,-667.93,0.00041095,31]
[312425539,1705870254387,-1676.72,0.00041095,31]
[312425540,1705870254397,-1321.38,0.00041095,31]
[312425541,1705870254406,-500.0,0.00041095,31]
[312425542,1705870254416,-500.0,0.00041095,31]
[312425543,1705870254426,-500.0,0.00041095,31]
[312425544,1705870254435,-500.0,0.00041095,10]
[312425545,1705870254445,-500.0,0.00041095,31]
[312425546,1705870254454,-585.97263105,0.00041095,31]
[312425547,1705870254464,-500.0,0.00041095,31]
[312425548,1705870254473,-500.0,0.00041095,31]
[312425549,1705870254482,-500.0,0.00041095,31]
[312425550,1705870254492,-500.0,0.00041095,31]
[312425551,1705870254502,-500.0,0.00041095,31]
[312425552,1705870254512,-4524.08,0.00041095,31]
[312425553,1705870254522,-500.0,0.00041095,31]
[312425554,1705870254532,-500.0,0.00041095,31]
[312425555,1705870254541,-500.0,0.00041095,31]
[312425556,1705870254551,-500.0,0.00041095,31]
[312425557,1705870254560,-1427.69,0.00041095,31]
[312425558,1705870254570,-500.0,0.00041095,31]
[312425559,1705870254580,-500.0,0.00041095,31]
[312425560,1705870254590,-500.0,0.00041095,31]
[312425561,1705870254600,-500.0,0.00041095,31]
[312425562,1705870254609,-1226.7,0.00041095,31]
[312425563,1705870254618,-1551.72,0.00041095,31]
[312425564,1705870254627,-500.0,0.00041095,31]
[312425565,1705870254637,-500.0,0.00041095,31]
[312425566,1705870254646,-2009.88,0.00041095,31]
[312425567,1705870254655,-246.05696151,0.00041095,31]
[312425568,1705870254665,-1780.61,0.00041095,31]
[312425569,1705870254675,-1860.53,0.00041095,31]
[312425570,1705870254684,-500.0,0.00041095,31]
[312425571,1705870254693,-500.0,0.00041095,31]
[312425572,1705870254703,-500.0,0.00041095,31]
[312425573,1705870254712,-1181.79,0.00041095,31]
[312425574,1705870254722,-500.0,0.00041095,31]
[312425575,1705870254732,-500.0,0.00041095,31]
[312425576,1705870254741,-3153.42,0.00041095,31]
[312425577,1705870254750,-500.0,0.00041095,31]
[312425578,1705870254760,-500.0,0.00041095,31]
[312425579,1705870254769,-511.46704539,0.00041095,31]
[312425580,1705870254778,-12471.26,0.00041095,31]
[312425581,1705870254788,-1229.48,0.00041095,31]
[312425582,1705870254797,-500.0,0.00041095,31]
[312425583,1705870254807,-500.0,0.00041095,31]
[312425584,1705870254816,-500.0,0.00041095,31]
[312425585,1705870254826,-2810.25,0.00041095,31]
[312425586,1705870254835,-500.0,0.00041095,31]
[312425587,1705870254844,-1928.62,0.00041095,31]
[312425588,1705870254854,-2374.7,0.00041095,31]
[312425589,1705870254864,-1824.94,0.00041095,31]
[312425590,1705870254873,-500.0,0.00041095,31]
[312425591,1705870254883,-500.0,0.00041095,31]
[312425592,1705870254893,-612.54056813,0.00041095,31]
[312425593,1705870254903,-848.85,0.00041095,31]
[312425594,1705870254913,-500.0,0.00041095,31]
[312425595,1705870254923,-632.51,0.00041095,31]
[312425596,1705870254933,-500.0,0.00041095,5]
[312425597,1705870254943,-500.0,0.00041095,31]
[312425598,1705870254952,-3735.69,0.00041095,31]
[312425599,1705870254965,-7294.65,0.00041095,31]
[312425600,1705870254975,-1715.0,0.00041095,31]
[312425601,1705870254984,-500.0,0.00041095,31]
[312425602,1705870254993,-584.84375,0.00041095,31]
[312425603,1705870255005,-500.0,0.00041095,31]
[312425604,1705870255014,-1151.74,0.00041095,31]
[312425605,1705870255024,-3322.7,0.00041095,31]
[312425606,1705870255034,-559.49,0.00041095,31]
[312425607,1705870255044,-500.0,0.00041095,31]
[312425608,1705870255055,-1371.13,0.00041095,31]
[312425609,1705870255065,-500.0,0.00041095,31]
[312425610,1705870255074,-500.0,0.00041095,31]
[312425611,1705870255084,-2377.22,0.00041095,31]
[312425612,1705870255093,-500.0,0.00041095,31]
[312425613,1705870255103,-500.0,0.00041095,31]
[312425614,1705870255113,-2200.89,0.00041095,31]
[312425615,1705870255123,-2062.02,0.00041095,31]
[312425616,1705870255132,-500.0,0.00041095,31]
[312425617,1705870255142,-3913.17,0.00041095,31]
[312425618,1705870255151,-500.0,0.00041095,31]
[312425619,1705870255161,-500.0,0.00041095,31]
[312425620,1705870255171,-500.0,0.00041095,31]
[312425621,1705870255180,-500.0,0.00041095,2]
[312425622,1705870255189,-3014.0,0.00041095,31]
[312425623,1705870255199,-500.0,0.00041095,31]
[312425624,1705870255208,-875.02,0.00041095,31]
[312425625,1705870255217,-1174.77,0.00041095,31]
[312425626,1705870255226,-889.77,0.00041095,31]
[312425627,1705870255235,-500.0,0.00041095,31]
[312425628,1705870255245,-501.1528463,0.00041095,31]
[312425629,1705870255254,-500.0,0.00041095,31]
[312425630,1705870255264,-6008.81,0.00041095,31]
[312425631,1705870255274,-3531.34,0.00041095,31]
[312425632,1705870255283,-500.0,0.00041095,31]
[312425633,1705870255292,-500.0,0.00041095,31]
[312425634,1705870255302,-500.0,0.00041095,31]
[312425635,1705870255311,-500.0,0.00041095,31]
[312425636,1705870255321,-500.0,0.00041095,31]
[312425637,1705870255331,-500.0,0.00041095,31]
[312425638,1705870255340,-500.0,0.00041095,31]
[312425639,1705870255349,-1637.2,0.00041095,31]
[312425640,1705870255358,-500.0,0.00041095,31]
[312425641,1705870255367,-500.0,0.00041095,31]
[312425642,1705870255377,-5179.35,0.00041095,31]
[312425643,1705870255386,-632.68,0.00041095,31]
[312425644,1705870255395,-500.0,0.00041095,31]
[312425645,1705870255405,-907.37,0.00041095,31]
[312425646,1705870255414,-500.0,0.00041095,31]
[312425647,1705870255423,-500.0,0.00041095,31]
[312425648,1705870255433,-500.0,0.00041095,31]
[312425649,1705870255442,-151.45990077,0.00041095,31]
[312425650,1705870255452,-500.0,0.00041095,31]
[312425651,1705870255461,-500.0,0.00041095,31]
[312425652,1705870255470,-4278.52,0.00041095,31]
[312425653,1705870255480,-500.0,0.00041095,31]
[312425654,1705870255490,-1175.27,0.00041095,31]
[312425655,1705870255499,-615.0,0.00041095,7]
[312425656,1705870255509,-500.0,0.00041095,31]
[312425657,1705870255518,-505.08127161,0.00041095,31]
[312425658,1705870255528,-500.0,0.00041095,31]
[312425659,1705870255537,-500.0,0.00041095,31]
[312425660,1705870255546,-500.0,0.00041095,31]
[312425661,1705870255556,-500.0,0.00041095,31]
[312425662,1705870255565,-500.0,0.00041095,31]
[312425663,1705870255574,-500.0,0.00041095,31]
[312425664,1705870255583,-859.65,0.00041095,31]
[312425665,1705870255592,-683.71,0.00041095,31]
[312425666,1705870255601,-500.0,0.00041095,31]
[312425667,1705870255611,-1644.32,0.00041095,31]
[312425668,1705870255620,-500.0,0.00041095,31]
[312425669,1705870255629,-500.597141,0.00041095,2]
[312425670,1705870255639,-500.0,0.00041095,31]
[312425671,1705870255648,-500.0,0.00041095,2]
[312425672,1705870255658,-3948.09,0.00041095,31]
[312425673,1705870255668,-707.51,0.00041095,31]
[312425674,1705870255678,-500.0,0.00041095,31]
[312425675,1705870255686,-500.0,0.00041095,31]
[312425676,1705870255695,-501.72469287,0.00041095,31]
[312425677,1705870255704,-815.97,0.00041095,31]
[312425678,1705870255714,-951.87,0.00041095,31]
[312425679,1705870255723,-782.79,0.00041095,31]
[312425680,1705870255732,-1407.91,0.00041095,31]
[312425681,1705870255741,-500.0,0.00041095,2]
[312425682,1705870255750,-13478.6,0.00041095,31]
[312425683,1705870255759,-1284.01,0.00041095,31]
[312425684,1705870255768,-2583.69,0.00041095,31]
[312425685,1705870255778,-510.79,0.00041095,31]
[312425686,1705870255787,-500.0,0.00041095,5]
[312425687,1705870255796,-508.01,0.00041095,31]
[312425688,1705870255805,-500.0,0.00041095,31]
[312425689,1705870255814,-500.0,0.00041095,31]
[312425690,1705870255823,-1146.46,0.00041095,31]
[312425691,1705870255833,-9885.65,0.00041095,31]
[312425692,1705870255842,-500.0,0.00041095,31]
[312425693,1705870255851,-151.0,0.00041095,7]
[312425694,1705870255860,-332.83,0.00041096,30]
[312425695,1705870255870,-2000.0,0.000411,2]
[312425696,1705870255880,-150.0,0.000411,2]
[312425697,1705870255889,-150.57983549,0.000411,10]
[312425698,1705870255898,-500.0,0.000411,2]
[312425699,1705870255907,-464.62,0.00041144,2]
[312425700,1705870255917,-310.16,0.000412,2]
[312425701,1705870255926,-1000.0,0.0004137,120]
[312425702,1705870255935,-150.57983549,0.000414,12]
[312425703,1705870255944,-229.60394686,0.00041522,4]
[312425704,1705870255953,-152.0,0.00041537,3]
[312425705,1705870255967,-759.0740569,0.00041587,2]
[312425706,1705870255976,-655.0,0.0004159,3]
[312425707,1705870255986,-500.0,0.00041599,4]
[312425708,1705870255995,-169.63,0.000416,7]
[312425709,1705870256005,-602.94,0.000416,7]
[312425710,1705870256014,-35578.4396793,0.00041606,2]
[312425711,1705870256024,-500.0,0.00041608,4]
[312425712,1705870256033,-180.285497,0.00041615,2]
[312425713,1705870256043,-500.0,0.00041617,4]
[312425714,1705870256053,-500.0,0.00041625,4]
[312425715,1705870256063,-4108.27131302,0.00041634,15]
[312425716,1705870256073,-500.0,0.00041634,4]
[312425717,1705870256082,-150.0,0.00041642,3]
[312425718,1705870256092,-500.0,0.00041643,30]
[312425719,1705870256101,-500.0,0.00041643,30]
[312425720,1705870256110,-503.31836024,0.00041643,31]
[312425721,1705870256119,-500.0,0.00041643,31]
[312425722,1705870256128,-500.0,0.00041643,31]
[312425723,1705870256138,-500.0,0.00041643,31]
[312425724,1705870256147,-195.1148253,0.00041643,31]
[312425725,1705870256157,-562.65,0.00041643,31]
[312425726,1705870256166,-500.0,0.00041643,31]
[312425727,1705870256175,-500.0,0.00041643,31]
[312425728,1705870256184,-168.76652799,0.00041643,31]
[312425729,1705870256193,-500.0,0.00041643,31]
[312425730,1705870256205,-500.0,0.00041643,31]
[312425731,1705870256214,-519.34581684,0.00041643,31]
[312425732,1705870256222,-500.0,0.00041643,31]
[312425733,1705870256231,-775.42,0.00041643,31]
[312425734,1705870256240,-500.0,0.00041643,31]
[312425735,1705870256249,-500.0,0.00041643,31]
[312425736,1705870256258,-500.0,0.00041643,31]
[312425737,1705870256267,-515.67275099,0.00041643,31]
[312425738,1705870256276,-500.0,0.00041643,31]
[312425739,1705870256285,-614.4,0.00041643,2]
[312425740,1705870256294,-500.0,0.00041643,31]
[312425741,1705870256303,-500.0,0.00041643,31]
[312425742,1705870256312,-632.65,0.00041643,31]
[312425743,1705870256321,-500.0,0.00041643,31]
[312425744,1705870256330,-500.0,0.00041643,31]
[312425745,1705870256339,-500.0,0.00041643,31]
[312425746,1705870256348,-500.0,0.00041643,31]
[312425747,1705870256357,-500.0,0.00041643,31]
[312425748,1705870256366,-500.0,0.00041643,31]
[312425749,1705870256376,-500.0,0.00041643,31]
[312425750,1705870256385,-500.0,0.00041643,31]
[312425751,1705870256394,-500.0,0.00041643,31]
[312425752,1705870256403,-500.0,0.00041643,31]
[312425753,1705870256412,-506.49942107,0.00041643,31]
[312425754,1705870256421,-500.0,0.00041643,31]
[312425755,1705870256430,-479.98222053,0.00041643,31]
[312425756,1705870256439,-500.0,0.00041643,20]
[312425757,1705870256449,-500.0,0.00041643,31]
[312425758,1705870256458,-500.0,0.00041643,31]
[312425759,1705870256467,-500.0,0.00041643,31]
[312425760,1705870256475,-500.0,0.00041643,31]
[312425761,1705870256485,-500.0,0.00041643,31]
[312425762,1705870256494,-500.0,0.00041643,31]
[312425763,1705870256503,-500.0,0.00041643,31]
[312425764,1705870256512,-500.0,0.00041643,31]
[312425765,1705870256521,-500.0,0.00041643,31]
[312425766,1705870256530,-500.0,0.00041643,31]
[312425767,1705870256539,-492.39181766,0.00041643,31]
[312425768,1705870256548,-500.0,0.00041643,31]
[312425769,1705870256557,-500.0,0.00041643,31]
[312425770,1705870256567,-500.0,0.00041643,31]
[312425771,1705870256576,-500.0,0.00041643,31]
[312425772,1705870256585,-500.0,0.00041643,31]
[312425773,1705870256594,-500.0,0.00041643,31]
[312425774,1705870256602,-500.0,0.00041643,31]
[312425775,1705870256611,-500.0,0.00041643,31]
[312425776,1705870256620,-500.0,0.00041643,31]
[312425777,1705870256630,-500.0,0.00041643,31]
[312425778,1705870256639,-500.0,0.00041643,31]
[312425779,1705870256648,-525.79,0.00041643,31]
[312425780,1705870256657,-500.0,0.00041643,31]
[312425781,1705870256666,-500.0,0.00041643,31]
[312425782,1705870256675,-504.44404475,0.00041643,31]
[312425783,1705870256684,-500.0,0.00041643,31]
[312425784,1705870256693,-500.0,0.00041643,31]
[312425785,1705870256702,-500.0,0.00041643,31]
[312425786,1705870256711,-500.0,0.00041643,31]
[312425787,1705870256720,-735.1,0.00041643,31]
[312425788,1705870256729,-500.0,0.00041643,31]
[312425789,1705870256738,-500.0,0.00041643,31]
[312425790,1705870256747,-770.18,0.00041643,31]
[312425791,1705870256757,-500.0,0.00041643,31]
[312425792,1705870256767,-500.0,0.00041643,31]
[312425793,1705870256777,-500.0,0.00041643,31]
[312425794,1705870256786,-500.0,0.00041643,31]
[312425795,1705870256795,-500.0,0.00041643,31]
[312425796,1705870256804,-500.0,0.00041643,31]
[312425797,1705870256813,-500.0,0.00041643,31]
[312425798,1705870256822,-500.0,0.00041643,31]
[312425799,1705870256831,-500.0,0.00041643,31]
[312425800,1705870256842,-564.55973261,0.00041643,31]
[312425801,1705870256851,-500.0,0.00041643,31]
[312425802,1705870256860,-500.0,0.00041643,31]
[312425803,1705870256870,-500.0,0.00041643,31]
[312425804,1705870256880,-500.0,0.00041643,31]
[312425805,1705870256890,-500.0,0.00041643,31]
[312425806,1705870256899,-500.0,0.00041643,31]
[312425807,1705870256908,-500.0,0.00041643,31]
[312425808,1705870256917,-500.0,0.00041643,31]
[312425809,1705870256926,-500.0,0.00041643,31]
[312425810,1705870256936,-500.0,0.00041643,31]
[312425811,1705870256945,-500.0,0.00041643,31]
[312425812,1705870256955,-500.0,0.00041643,31]
[312425813,1705870256964,-552.18,0.00041643,31]
[312425814,1705870256977,-500.0,0.00041643,31]
[312425815,1705870256990,-518.69,0.00041643,31]
[312425816,1705870257003,-500.0,0.00041643,31]
[312425817,1705870257018,-500.0,0.00041643,31]
[312425818,1705870257032,-500.0,0.00041643,31]
[312425819,1705870257046,-500.0,0.00041643,7]
[312425820,1705870257057,-500.0,0.00041643,31]
[312425821,1705870257070,-500.0,0.00041643,31]
[312425822,1705870257082,-500.0,0.00041643,31]
[312425823,1705870257094,-500.0,0.00041643,31]
[312425824,1705870257108,-159.52858725,0.00041643,31]
[312425825,1705870257120,-500.0,0.00041643,31]
[312425826,1705870257135,-640.42053262,0.00041643,31]
[312425827,1705870257148,-500.0,0.00041643,31]
[312425828,1705870257159,-439.86238797,0.00041643,31]
[312425829,1705870257170,-500.0,0.00041643,31]
[312425830,1705870257184,-500.0,0.00041643,31]
[312425831,1705870257196,-500.0,0.00041643,31]
[312425832,1705870257208,-500.0,0.00041643,31]
[312425833,1705870257220,-500.0,0.00041643,31]
[312425834,1705870257231,-500.0,0.00041643,31]
[312425835,1705870257243,-500.00000093,0.00041643,31]
[312425836,1705870257256,-500.0,0.00041643,31]
[312425837,1705870257267,-500.0,0.00041643,31]
[312425838,1705870257278,-500.0,0.00041643,31]
[312425839,1705870257292,-500.0,0.00041643,31]
[312425840,1705870257303,-503.97342661,0.00041643,31]
[312425841,1705870257316,-500.0,0.00041643,31]
[312425842,1705870257327,-500.0,0.00041643,31]
[312425843,1705870257340,-663.61,0.00041643,31]
[312425844,1705870257353,-500.0,0.00041643,31]
[312425845,1705870257367,-500.0,0.00041643,31]
[312425846,1705870257380,-618.88268621,0.00041643,31]
[312425847,1705870257392,-569.6870936,0.00041643,31]
[312425848,1705870257405,-500.0,0.00041643,31]
[312425849,1705870257418,-500.0,0.00041643,31]
[312425850,1705870257431,-500.0,0.00041643,31]
[312425851,1705870257443,-500.0,0.00041643,31]
[312425852,1705870257454,-351.7003408,0.00041643,31]
[312425853,1705870257464,-563.69,0.00041643,31]
[312425854,1705870257474,-500.0,0.00041643,31]
[312425855,1705870257484,-500.0,0.00041643,31]
[312425856,1705870257496,-500.0,0.00041643,31]
[312425857,1705870257508,-500.0,0.00041643,31]
[312425858,1705870257519,-500.0,0.00041643,31]
[312425859,1705870257530,-500.0,0.00041643,31]
[312425860,1705870257543,-500.0,0.00041643,31]
[312425861,1705870257553,-500.0,0.00041643,31]
[312425862,1705870257563,-500.0,0.00041643,31]
[312425863,1705870257573,-500.0,0.00041643,31]
[312425864,1705870257584,-500.0,0.00041643,31]
[312425865,1705870257595,-180.59290132,0.00041643,31]
[312425866,1705870257606,-500.0,0.00041643,31]
[312425867,1705870257617,-502.64696854,0.00041643,31]
[312425868,1705870257627,-500.0,0.00041643,31]
[312425869,1705870257639,-500.0,0.00041643,31]
[312425870,1705870257650,-500.0,0.00041643,31]
[312425871,1705870257661,-500.0,0.00041643,31]
[312425872,1705870257672,-500.0,0.00041643,31]
[312425873,1705870257684,-500.0,0.00041643,31]
[312425874,1705870257695,-500.0,0.00041643,31]
[312425875,1705870257706,-500.0,0.00041643,31]
[312425876,1705870257717,-500.0,0.00041643,31]
[312425877,1705870257729,-500.0,0.00041643,31]
[312425878,1705870257740,-500.0,0.00041643,31]
[312425879,1705870257751,-500.0,0.00041643,31]
[312425880,1705870257763,-500.0,0.00041643,31]
[312425881,1705870257776,-500.0,0.00041643,31]
[312425882,1705870257787,-500.0,0.00041643,31]
[312425883,1705870257799,-500.0,0.00041643,31]
[312425884,1705870257810,-500.0,0.00041643,31]
[312425885,1705870257821,-500.0,0.00041643,31]
[312425886,1705870257832,-732.27,0.00041643,31]
[312425887,1705870257843,-539.96613575,0.00041643,31]
[312425888,1705870257853,-501.91,0.00041643,31]
[312425889,1705870257864,-500.0,0.00041643,31]
[312425890,1705870257875,-1000.0,0.00041643,31]
[312425891,1705870257887,-500.0,0.00041643,31]
[312425892,1705870257899,-500.0,0.00041643,31]
[312425893,1705870257910,-500.0,0.00041643,31]
[312425894,1705870257921,-500.0,0.00041643,31]
[312425895,1705870257932,-500.0,0.00041643,31]
[312425896,1705870257943,-500.0,0.00041643,31]
[312425897,1705870257954,-500.0,0.00041643,31]
[312425898,1705870257969,-500.0,0.00041643,31]
[312425899,1705870257980,-500.0,0.00041643,31]
[312425900,1705870257991,-500.0,0.00041643,31]
[312425901,1705870258002,-500.0,0.00041643,31]
[312425902,1705870258013,-500.0,0.00041643,31]
[312425903,1705870258024,-344.23185313,0.00041643,31]
[312425904,1705870258036,-500.0,0.00041643,31]
[312425905,1705870258048,-500.0,0.00041643,31]
[312425906,1705870258060,-500.0,0.00041643,31]
[312425907,1705870258071,-500.0,0.00041643,31]
[312425908,1705870258082,-500.0,0.00041643,31]
[312425909,1705870258093,-500.0,0.00041643,30]
[312425910,1705870258104,-535.28,0.00041643,31]
[312425911,1705870258116,-500.0,0.00041643,31]
[312425912,1705870258127,-500.0,0.00041643,31]
[312425913,1705870258139,-500.0,0.00041643,31]
[312425914,1705870258151,-250.0,0.00041643,31]
[312425915,1705870258162,-1269.91,0.00041643,31]
[312425916,1705870258172,-798.87,0.00041643,31]
[312425917,1705870258183,-517.21991379,0.00041643,31]
[312425918,1705870258195,-500.0,0.00041643,31]
[312425919,1705870258206,-500.0,0.00041643,31]